Cogmind - Beta 13 @@@ ROGUE MODE // 2024.05.10 @ 19:02:14 Player: Cheeriohz Result: Destroyed by D-53 Grenadier with Mini Grenade Launcher Performance ------------- Evolutions (0) 0 Regions Visited (2) 400 Robots Destroyed (23) 115 Value Destroyed (441) 441 Prototype IDs (0) 0 Alien Tech Used (0) 0 Bonus (21) 21 TOTAL SCORE: 977 Bonus ------- Follower Combat Kills 21 Cogmind --------- Core Integrity 0/250 Matter 297/300 Energy 100/100 System Corruption 0% Temperature Cool (0) Movement Walking (260) Ox2 Location -10/Mines Parts ------- > --- POWER (1) -------- (None) > --- PROPULSION (2) --- Aluminum Leg > --- UTILITY (2) ------ Large Storage Unit > --- WEAPON (2) ------- Light Assault Rifle > --- INVENTORY (15) --- Improved Ion Engine Light Treads Light Treads Structural Scanner Experimental Sensor Array Seismic Detector Medium Laser Grenade Launcher Hammer Peak State ------------ > --- POWER ------------ Improved Ion Engine > --- PROPULSION ------- Aluminum Leg Aluminum Leg > --- UTILITY ---------- Large Storage Unit Light Armor Plating > --- WEAPON ----------- Medium Laser Light Assault Rifle > --- INVENTORY -------- Improved Ion Engine Light Treads Light Treads Structural Scanner Experimental Sensor Array Medium Laser Grenade Launcher Hammer [Rating: 9] Favorites ----------- Power Improved Ion Engine Engine Improved Ion Engine Propulsion Aluminum Leg Leg Aluminum Leg Utility Light Armor Plating Device Seismic Detector Storage Large Storage Unit Protection Light Armor Plating Weapon Medium Laser Energy Gun Medium Laser Ballistic Gun Light Assault Rifle Launcher Grenade Launcher Build | -11 -10 -10 ------- Run | Yrd Mat Min Slots Evolved . | . . . Power . | . . . Propulsion . | . . . Utility . | . . . Weapon . | . . . Parts Attached 10 | 1 9 . Power 2 | . 2 . Engine 2 | . 2 . Core . | . . . Reactor . | . . . Propulsion . | . . . Treads . | . . . Leg . | . . . Wheel . | . . . Hover . | . . . Flight . | . . . Utility 3 | 1 2 . Device 1 | 1 . . Storage 1 | . 1 . Processor . | . . . Hackware . | . . . Protection 1 | . 1 . Artifact . | . . . Weapon 5 | . 5 . Energy Gun 3 | . 3 . Energy Cannon . | . . . Ballistic Gun 1 | . 1 . Ballistic Cannon . | . . . Launcher 1 | . 1 . Special Weapon . | . . . Impact Weapon . | . . . Slashing Weapon . | . . . Piercing Weapon . | . . . Special Melee Weapon . | . . . Unidentified Prototypes . | . . . Parts Lost 4 | . . 4 Power 1 | . . 1 Propulsion 1 | . . 1 Utility 1 | . . 1 Weapon 1 | . . 1 Highest Loss Streak 4 | . . 4 To Critical Strikes . | . . . Average Slot Usage (%) 99 | . 100 99 Engine 13 | . 14 13 Leg 28 | . 28 28 Device 4 | . 6 . Storage 14 | . 14 14 Protection 9 | . 7 14 Energy Gun 18 | . 22 14 Ballistic Gun 8 | . 5 14 Naked Turns . | . . . Heaviest Build 33 | 12 33 33 Greatest Support 20 | 20 20 20 Greatest Overweight (x) 1 | . 1 1 Average Overweight (x) . | . . 1 Largest Inventory Capacity 15 | 8 15 15 Average Capacity 12 | 8 10 15 Most Carried 9 | 7 8 9 Average Carried 7 | 6 7 8 Final Capacity 15 | 8 15 15 Final Carried 9 | 7 8 9 Class Distribution -------------------- 100% | Mutant Dominant Class ---------------- Mutant | -10/Materials Mutant | -10/Mines Resources | -11 -10 -10 ----------- Run | Yrd Mat Min Matter Collected 412 | 210 191 11 Remotely . | . . . Salvage Created 617 | 208 409 . Parts 39 | 10 29 . Haulers Intercepted . | . . . Recyclers Shooed . | . . . Parts Field Recycled . | . . . Retrieved Matter . | . . . Parts Self-Destructed . | . . . Prevented . | . . . Kills | -11 -10 -10 ------- Run | Yrd Mat Min Combat Hostiles Destroyed 14 | . 13 1 Guns 11 | . 10 1 AOE 3 | . 3 . Classes Destroyed 7 | 2 4 1 Builder 2 | . 2 . Tunneler 5 | 5 . . Recycler 1 | 1 . . Operator 1 | . 1 . Swarmer 6 | . 6 . Grunt 7 | . 7 . Demolisher 1 | . . 1 Best Kill Streak 4 | 4 3 1 Combat Bots Only 3 | . 3 1 Max Kills in Single Turn 2 | 1 2 1 Gunslinging . | . . . Exploded 2 | . 2 . Melee . | . . . Uniques/NPCs Destroyed . | . . . Combat | -11 -10 -10 -------- Run | Yrd Mat Min Hostile Shots Fired 66 | . 47 19 Missed 16 | . 14 2 Damage Taken 846 | . 361 485 Core 259 | . 146 113 Absorbed by Shields . | . . . Core Remaining (%) 100 | 100 . . Volleys Fired 65 | 12 44 9 Largest 2 | 2 2 2 Hottest 100 | 90 100 70 Shots Fired 123 | 24 85 14 Gun 120 | 24 82 14 Cannon . | . . . Launcher 3 | . 3 . Special . | . . . Kinetic 15 | . 6 9 Thermal 105 | 24 76 5 Explosive 3 | . 3 . Electromagnetic . | . . . Robot Hit Streak 20 | 8 20 4 Robot Miss Streak 5 | 2 3 5 Penetration Max . | . . . Secondary Targets . | . . . Shots Hit Robots 83 | 15 61 7 Core Hits 35 | 7 27 1 Critical Kills . | . . . Critical Parts Destroyed . | . . . Critical Strikes 5 | 1 4 . Burn 5 | 1 4 . Melee Attacks . | . . . Impact . | . . . Slashing . | . . . Piercing . | . . . Sneak Attacks . | . . . Combat Hostiles . | . . . Follow-up Attacks . | . . . Damage Inflicted 1135 | 178 891 66 Guns 974 | 178 730 66 Cannons . | . . . Explosions 161 | . 161 . Melee . | . . . Ramming . | . . . Kinetic 79 | . 38 41 Thermal 895 | 178 692 25 Explosive 161 | . 161 . Electromagnetic . | . . . Impact . | . . . Slashing . | . . . Piercing . | . . . Highest Corruption . | . . . Average Corruption . | . . . Corruption Purged . | . . . Corruption Blocked . | . . . Overload Shots . | . . . Overflow Damage 1 | . 1 . Projectiles . | . . . Explosions 1 | . 1 . Melee . | . . . Knockbacks . | . . . Impact . | . . . Kinetic . | . . . Secondary . | . . . Self-Inflicted Damage 16 | . 16 . Shots 1 | . 1 . Rammed . | . . . Targets Rammed . | . . . Kicked . | . . . Crushed . | . . . Highest Temperature 462 | 180 462 64 Average Temperature 129 | 71 152 30 Received Heat Transfer 147 | . 147 . Effects 4 | . 4 . Energy Bleed 1 | . 1 . Interference 1 | . 1 . Matter Decay 2 | . 2 . Siege Activations . | . . . Robots Corrupted . | . . . Combat Hostiles . | . . . Parts Fried . | . . . Impact Corruptions . | . . . Robots Melted . | . . . Combat Hostiles . | . . . Parts Melted 8 | 1 7 . Heat Transferred 2771 | 557 2140 74 Parts Sabotaged . | . . . Parts Stolen . | . . . Parts Stripped . | . . . Power Chain Reactions . | . . . Alert | -11 -10 -10 ------- Run | Yrd Mat Min Peak Influence 307 | 30 307 70 Initial 19 | . 19 11 Average 76 | 13 118 18 Maximum Alert Level 1 | . 1 . Low Security (%) 89 | 100 82 100 Level 1 10 | . 17 . Level 2 . | . . . Level 3 . | . . . Level 4 . | . . . Level 5 . | . . . High Security . | . . . Max Security . | . . . Squads Dispatched 3 | . 3 . Investigation 2 | . 2 . Extermination . | . . . Reinforcement 1 | . 1 . Assault . | . . . Garrison . | . . . Intercept . | . . . Searches Triggered . | . . . Construction Impeded . | . . . Haulers Reinforced . | . . . Active Scanning Responses . | . . . Cargo Convoy Interrupts . | . . . Stealth | -11 -10 -10 --------- Run | Yrd Mat Min Distress Signals 4 | . 3 1 Communications Jammed . | . . . Distress Signals . | . . . Times Spotted 36 | . 24 12 Peak Tracking Total 6 | . 5 6 Tactical Retreats 4 | . 2 2 Traps | -11 -10 -10 ------- Run | Yrd Mat Min Traps Triggered 1 | . 1 . Indirectly . | . . . Trap Hack Attempts . | . . . Triggered . | . . . Disarmed . | . . . Reprogrammed . | . . . Reused . | . . . Traps Extracted . | . . . Installed . | . . . Triggered . | . . . Machines | -11 -10 -10 ---------- Run | Yrd Mat Min Machines Disabled 1 | . 1 . Max in Single Turn 1 | . 1 . Machines Repaired . | . . . Machines Dismantled . | . . . Machines Sabotaged . | . . . Overloaded Fab Kills . | . . . Hacking | -11 -10 -10 --------- Run | Yrd Mat Min Machines Accessed 9 | . 9 . Terminals 8 | . 8 . Fabricators . | . . . Repair Stations . | . . . Recycling Units 1 | . 1 . Scanalyzers . | . . . Garrison Access . | . . . Total Hacks 23 | . 23 . Successful 9 | . 9 . Failed 13 | . 13 . Catastrophic 5 | . 5 . Database Lockouts 1 | . 1 . Manual 16 | . 16 . Terminals 22 | . 22 . Fabricators . | . . . Repair Stations . | . . . Recycling Units 1 | . 1 . Scanalyzers . | . . . Garrison Access . | . . . Terminal Hacks 4 | . 4 . Robot Analysis 1 | . 1 . Alert Level 1 | . 1 . Unreport Threat 1 | . 1 . Maintenance Status 1 | . 1 . Fabricator Hacks . | . . . Repair Station Hacks . | . . . Recycling Unit Hacks . | . . . Scanalyzer . | . . . Garrison Access Hacks . | . . . Unauthorized Hacks 5 | . 5 . Terminals 4 | . 4 . Assimilate 1 | . 1 . Botnet 3 | . 3 . Fabricators . | . . . Repair Stations . | . . . Recycling Units 1 | . 1 . Tunnel 1 | . 1 . Scanalyzers . | . . . Garrison Access . | . . . Data Cores Recovered . | . . . Used . | . . . Hacking Detections 7 | . 7 . Full Trace Events 1 | . 1 . Feedback Events . | . . . Feedback Blocked . | . . . Robot Schematics Acquired . | . . . Robots Built . | . . . Authchips . | . . . Time . | . . . Total Robot Build Rating . | . . . Part Schematics Acquired . | . . . Parts Built . | . . . Authchips . | . . . Time . | . . . Total Part Build Rating . | . . . Parts Repaired . | . . . Time . | . . . Parts Recycled . | . . . Recycled Matter . | . . . Retrieved Matter . | . . . Retrieved Components . | . . . Parts Scanalyzed . | . . . Part Schematics Acquired . | . . . Parts Damaged . | . . . Bothacking | -11 -10 -10 ------------ Run | Yrd Mat Min Used RIF Installer . | . . . Robots Hacked . | . . . Non-combat . | . . . Combat . | . . . Robot Hacks Applied . | . . . Relay Couplers Released . | . . . Fabnet Peak Effective % . | . . . Robots Rewired . | . . . Allies Hacked . | . . . Hacks Repelled . | . . . Allies | -11 -10 -10 -------- Run | Yrd Mat Min Total Allies 4 | . 1 3 Largest Group 3 | . 1 3 Highest-Rated Group 40 | . 10 40 Highest-Rated Ally 16 | . 10 16 Total Orders . | . . . Ally Attacks 20 | . . 20 Total Damage 114 | . . 114 Kills 6 | . . 6 Allies Corrupted . | . . . Allies Melted . | . . . Intel | -11 -10 -10 ------- Run | Yrd Mat Min Robot Analysis Total 1 | . 1 . Derelict Logs Recovered 1 | . . 1 Drone Launches . | . . . Drone Recoveries . | . . . Exploration | -11 -10 -10 ------------- Run | Yrd Mat Min Turns Passed 1548 | 85 903 560 Spaces Moved 736 | 37 500 199 Core . | . . . Treads . | . . . Legs 736 | 37 500 199 Wheels . | . . . Hover . | . . . Flight . | . . . Fastest Speed 120 | 120 120 190 Average Speed 154 | 120 142 190 Slowest Speed 190 | 120 190 190 Overloaded Moves . | . . . Propulsion Burnouts . | . . . Robots Hopped . | . . . Cave-ins Triggered . | . . . Exploration Rate (%) 41 | 3 84 38 Regions Visited 2 Branch Regions 1 Pre-discovered Areas 1 | . 1 . Known Exits Taken . | . . . Unknown Exits Taken 2 | 1 1 . Scrap Searched 1 | . . 1 Spaces Dug . | . . . Terrain Destroyed 11 | . 11 . Melee . | . . . Projectile . | . . . AOE 11 | . 11 . Terrain Rammed . | . . . Walls Destroyed . | . . . Machines Disabled . | . . . Actions | -11 -10 -10 --------- Run | Yrd Mat Min Total 1033 | 53 610 370 Wait 204 | 2 43 159 Move 734 | 36 499 199 Hop . | . . . Pick Up 9 | 2 5 2 Fast Attach 2 | . 2 . Attach 1 | 1 . . Detach . | . . . Swap 7 | . 7 . Drop 11 | . 10 1 Fire 65 | 12 44 9 Melee . | . . . Ram . | . . . Kick . | . . . Crush . | . . . Escape Stasis . | . . . Rewire . | . . . Trap . | . . . Miscellaneous . | . . . Route ------- -11/Scrapyard -10/Materials (discovered 3 exits: *Mat x2 / [*Min]) -10/Mines (discovered 1 exit: Mat) History --------- Turn | Location | Event 1 | -11/Scrapyard | Discovered new exit (range 3) 86 | -11/Scrapyard | Entered Materials 305 | -10/Materials | Build established: Mutant 309 | -10/Materials | Discovered new exit (range 15) 598 | -10/Materials | Core integrity fell below 50% 616 | -10/Materials | Discovered new exit (range 4) 680 | -10/Materials | Central database locked down 942 | -10/Materials | Discovered new exit (range 9) 989 | -10/Materials | Entered Mines 990 | -10/Mines | Assembled infested the area 995 | -10/Mines | Assisted by a Guerilla fighting off Assembled 999 | -10/Mines | Identified exit to Materials 1159 | -10/Mines | Assisted by bots powering up and referring to "LRC-V3" 1433 | -10/Mines | Found a damaged Exp. Sensor Array with a note attached 1438 | -10/Mines | Found Prototype Device 1543 | -10/Mines | Core integrity fell below 20% 1549 | -10/Mines | Destroyed by D-53 Grenadier with Mini Grenade Launcher Last Messages --------------- 01535_ Trooper 1b destroyed. 01535_ Mercenary 1a destroyed. 01535_ U-05 Engineer lays Concrete. 01537_ Imp. Ion Engine destroyed. 01537_ U-05 Engineer destroyed. 01537_ U-05 Engineer lays Concrete. 01537_ K-01 Serf collects debris. 01538_ U-05 Engineer lays Concrete. 01540_ Lgt. Armor Plating destroyed. 01540_ U-05 Engineer lays Concrete. 01543_ The unstable cave ceiling collapses. 01543_ Aluminum Leg crushed. 01543_ Med. Laser destroyed. 01543_ D-53 Grenadier destroyed. 01543_ U-05 Engineer lays Concrete. 01545_ The unstable cave ceiling collapses. 01545_ Aluminum Leg destroyed. 01545_ U-05 Engineer lays Concrete. 01548_ The unstable cave ceiling collapses. 01548_ U-05 Engineer lays Concrete. Map ----- +----------------------------------------------------+ | ????????????????????????????????????????? | | ????????????????????????????????????????? | | ??????????????######????????????????????? | | ??????????????# ##???????????????????? | | ??????????????# #???????????????????? | | ??????????????# #???????????????????? | | ?????????????## #########????????????? | | ????????????## #????????????? | | ??????????### #????????###?? | | ?????????## ####### #??????## ##? | | ?????????# ##?????# #???#### ## | | ?????????# ##??????# #??## | | ????????## ##???????# #??# #? | | ????????# ##????????# #??# #? | | ???????## ##?????????# #### ##? | | ??????## ##??????????# ##?? | | ??????# ##???????????####### ###??? | | ??????# ##?????????????????#####????? | | ??????# |*####???????????????????????? | | ??????# =% #???????????????????????? | | ??????# **! #####????????????????????? | | ??????# = ##???????????????????? | | ??????# ##??????????????????? | | ??????# ##?????????????????? | | ?????## # d####??????????????? | | ????## @ %#??????????????? | | ????# ##!#??????????????? | | ????# ### #??????????????? | | ????# ! #?# #??????????????? | | ????# ## u #?# #??????????????? | | ????## #?## #?# ??????????????? | | ?????####???## #?###??????????????? | | ?????????????### ###?????????????????? | | ?????????????# ## [## #?#???????????????? | | ?????????????# [#=### # ????????????????? | | ??????######## =#%## #?#?????????????? | | ??????# ##=## ## # #?????????????? | | ??????# ==%|*% ##??????????????? | | ??????# ## #### # ##??????????????? | | ??????# ## # * % ?????????????? | | ??????# ## ### ## ?? ??????????? | | ??????# ## ##? ##???? ?????????? | | ??????# ### " #??#???????????????? | | ???#### ### % #??????????????????? | | ???# ### % ##??????????????????? | | ???# % #???????????????????? | | ???# %% =%% #???????????????????? | | ???##### "#### #??????????????????? | | ?????## % ###??? "#????????????????? | | ????## %%"#????? #" ??????????????? | +----------------------------------------------------+ Best States ------------- Heat Dissipation 25 Energy Generation 12 Energy Capacity 265 Matter Stores 300 Matter Capacity 300 Sight Range 16 Terrain Scan Density 10 Armor Coverage 150 Evasion (%) 55 Item Schematics ----------------- None Robot Schematics ------------------ None Fabricated ------------ Nothing Alien Tech Used ----------------- None Achievements -------------- None Challenges ------------ None Game ------ Seed ThermalQuantumMatrix Manual? 0 Play Time 00:12:48 Cumulative 171.2 hours Start 2024.05.10 @ 18:51:22 End 2024.05.10 @ 19:02:14 Sessions 1 Manual Loads 0 Difficulty Rogue Special Mode None Game No. 146 Rogue 146 Adventurer 0 Explorer 0 Win Type - Total 3 Types 2/0/0/1/0/0/0/0/0 Lore% 58 Gallery% 76 Achievement% 59 Wizard Run 0 Options --------- Layout 2 ASCII 0 Keyboard 1 Movement Numpad Keybinds 0 Fullscreen 1 Font 32/SmallcapsGlow Map View 77x44 Zoom Use 0% Tactical HUD 1 Map Filters NONE Filters NONE Steam 1 RUN: 502450d8-406d-4aba-965e-7c5a04c12e45